fUST/lending_fUST_20251006
["ID","MTS","AMOUNT","RATE_DAILY","PERIOD"]
[389608301,1759741841282,-151.0,0.0001988,2]
[389608302,1759741841292,-151.0,0.0001988,2]
[389608303,1759741841301,-151.0,0.0001988,2]
[389608304,1759741841310,-151.0,0.0001988,2]
[389608305,1759741841320,-191.29322,0.0001988,2]
[389608306,1759741841329,-151.0,0.0001988,2]
[389608307,1759741841338,-151.0,0.0001988,2]
[389608308,1759741841347,-151.0,0.0001988,2]
[389608309,1759741841356,-151.0,0.0001988,2]
[389608310,1759741841366,-151.0,0.0001988,2]
[389608311,1759741841375,-151.0,0.0001988,2]
[389608312,1759741841384,-395.065181,0.0001988,2]
[389608313,1759741841394,-395.065181,0.0001988,2]
[389608314,1759741841403,-395.065181,0.0001988,2]
[389608315,1759741841412,-395.065181,0.0001988,2]
[389608316,1759741841421,-500.0,0.0001989,2]
[389608317,1759741841432,-501.52920836,0.0001989,2]
[389608318,1759741841442,-374.45360787,0.0001989,2]
[389608319,1759741841451,-500.0,0.0001989,2]
[389608320,1759741841460,-151.870907,0.0001989,2]
[389608321,1759741841469,-151.0,0.0001989,2]
[389608322,1759741841480,-151.0,0.0001989,2]
[389608323,1759741841489,-151.0,0.0001989,2]
[389608324,1759741841498,-151.0,0.0001989,2]
[389608325,1759741841508,-151.0,0.0001989,2]
[389608326,1759741841517,-151.0,0.0001989,2]
[389608327,1759741841527,-151.0,0.0001989,2]
[389608328,1759741841536,-151.0,0.0001989,2]
[389608329,1759741841545,-151.0,0.0001989,2]
[389608330,1759741841554,-151.0,0.0001989,2]
[389608331,1759741841564,-151.0,0.0001989,2]
[389608332,1759741841573,-1023.608451,0.000199,2]
[389608333,1759741841582,-175.9,0.0001993,2]
[389608334,1759741841591,-12500.0,0.00019962,7]
[389608335,1759741841605,-12500.0,0.00019971,7]
[389608336,1759741841614,-293.61728183,0.0001998,7]
[389608337,1759741841623,-533.6495537,0.0001998,7]
[389608338,1759741841632,-160.0,0.0002,7]
[389608339,1759741841641,-300.0,0.0002001,2]
[389608340,1759741841651,-1428.16777634,0.00020035,2]
[389608341,1759741841661,-177.99967388,0.00020039,2]
[389608342,1759741841670,-711.28669681,0.00020039,2]
[389608343,1759741841681,-2000.0,0.000201,2]
[389608344,1759741841690,-151.0,0.000201,2]
[389608345,1759741841700,-154.55074,0.000201,2]
[389608346,1759741841709,-215.381821,0.000201,2]
[389608347,1759741841718,-368.87169865,0.00020147,2]
[389608348,1759741841728,-597.42367746,0.00020192,2]
[389608349,1759741841738,-500.0,0.00020235,2]
[389608350,1759741841747,-500.0,0.00020235,2]
[389608351,1759741841757,-500.0,0.00020235,2]
[389608352,1759741841766,-516.0,0.00020246,2]
[389608353,1759741841775,-151.0,0.00020359,2]
[389608354,1759741841784,-197.452558,0.00020359,2]
[389608355,1759741841794,-260.0,0.00020381,2]
[389608356,1759741841806,-1000.0,0.000204,2]
[389608357,1759741841816,-1000.0,0.00020421,2]
[389608358,1759741841825,-500.0,0.00020421,2]
[389608359,1759741841834,-1000.0,0.00020421,2]
[389608360,1759741841847,-1000.0,0.00020421,2]
[389608361,1759741841857,-1000.0,0.00020421,2]
[389608362,1759741841867,-1000.0,0.00020421,2]
[389608363,1759741841876,-1000.0,0.00020421,2]
[389608364,1759741841886,-1000.0,0.00020421,2]
[389608365,1759741841896,-406.558254,0.00020438,2]
[389608366,1759741841905,-500.0,0.0002046,2]
[389608367,1759741841914,-500.0,0.0002046,2]
[389608368,1759741841926,-1428.16777634,0.00020462,2]
[389608369,1759741841935,-301.56041544,0.00020468,2]
[389608370,1759741841945,-302.80975651,0.00020468,2]
[389608371,1759741841954,-540.0,0.00020646,2]
[389608372,1759741841964,-179.9640072,0.00020681,2]
[389608373,1759741841973,-2452.12225698,0.00020758,2]
[389608374,1759741841983,-1428.16777634,0.00020758,2]
[389608375,1759741841992,-250.0,0.00020759,2]
[389608376,1759741842003,-1000.0,0.00020783,2]
[389608377,1759741842012,-1000.0,0.00020783,2]
[389608378,1759741842021,-1000.0,0.00020783,2]
[389608379,1759741842031,-2000.0,0.000208,2]
[389608380,1759741842040,-151.0,0.0002086,2]
[389608381,1759741842049,-151.0,0.0002086,2]
[389608382,1759741842058,-151.0,0.0002086,2]
[389608383,1759741842067,-151.0,0.0002086,2]
[389608384,1759741842077,-151.0,0.0002086,2]
[389608385,1759741842086,-151.0,0.0002086,2]
[389608386,1759741842096,-151.0,0.0002086,2]
[389608387,1759741842106,-151.0,0.0002086,2]
[389608388,1759741842115,-151.0,0.0002086,2]
[389608389,1759741842126,-151.0,0.0002086,2]
[389608390,1759741842137,-229.521399,0.0002086,2]
[389608391,1759741842147,-151.0,0.0002086,2]
[389608392,1759741842157,-151.0,0.0002086,2]
[389608393,1759741842167,-151.0,0.0002086,2]
[389608394,1759741842177,-151.0,0.0002086,2]
[389608395,1759741842186,-151.0,0.0002086,2]
[389608396,1759741842196,-151.0,0.0002086,2]
[389608397,1759741842205,-174.345799,0.0002086,2]
[389608398,1759741842214,-151.0,0.0002086,2]
[389608399,1759741842223,-174.345799,0.0002086,2]
[389608400,1759741842233,-151.0,0.0002086,2]
[389608401,1759741842242,-174.345799,0.0002086,2]
[389608402,1759741842253,-151.0,0.0002086,2]
[389608403,1759741842263,-151.0,0.0002086,2]
[389608404,1759741842273,-174.345799,0.0002086,2]
[389608405,1759741842282,-151.0,0.0002086,2]
[389608406,1759741842291,-151.0,0.0002086,2]
[389608407,1759741842300,-151.0,0.0002086,2]
[389608408,1759741842309,-151.0,0.0002086,2]
[389608409,1759741842318,-151.0,0.0002086,2]
[389608410,1759741842327,-151.0,0.0002086,2]
[389608411,1759741842336,-151.0,0.0002086,2]
[389608412,1759741842345,-207.350752,0.0002086,2]
[389608413,1759741842354,-207.350752,0.0002086,2]
[389608414,1759741842363,-207.350752,0.0002086,2]
[389608415,1759741842372,-207.350752,0.0002086,2]
[389608416,1759741842381,-151.0,0.0002086,2]
[389608417,1759741842390,-151.0,0.0002086,2]
[389608418,1759741842399,-151.0,0.0002086,2]
[389608419,1759741842408,-151.0,0.0002086,2]
[389608420,1759741842417,-151.0,0.0002086,2]
[389608421,1759741842425,-290.740404,0.0002086,2]
[389608422,1759741842434,-151.0,0.0002086,2]
[389608423,1759741842443,-151.0,0.0002086,2]
[389608424,1759741842452,-151.0,0.0002086,2]
[389608425,1759741842461,-151.0,0.0002086,2]
[389608426,1759741842470,-151.0,0.0002086,2]
[389608427,1759741842478,-151.0,0.0002086,2]
[389608428,1759741842487,-151.0,0.0002086,2]
[389608429,1759741842496,-151.0,0.0002086,2]
[389608430,1759741842504,-151.0,0.0002086,2]
[389608431,1759741842514,-151.0,0.0002086,2]
[389608432,1759741842523,-151.0,0.0002086,2]
[389608433,1759741842532,-151.0,0.0002086,2]
[389608434,1759741842541,-151.0,0.0002086,2]
[389608435,1759741842550,-151.0,0.0002086,2]
[389608436,1759741842559,-395.065181,0.0002086,2]
[389608437,1759741842568,-395.065181,0.0002086,2]
[389608438,1759741842577,-395.065181,0.0002086,2]
[389608439,1759741842586,-395.065181,0.0002086,2]
[389608440,1759741842596,-151.0,0.0002086,2]
[389608441,1759741842605,-151.0,0.0002086,2]
[389608442,1759741842615,-1683.566719,0.0002086,2]
[389608443,1759741842624,-1683.566719,0.0002086,2]
[389608444,1759741842633,-1683.566719,0.0002086,2]
[389608445,1759741842642,-1683.566719,0.0002086,2]
[389608446,1759741842651,-151.0,0.0002086,2]
[389608447,1759741842660,-151.0,0.0002086,2]
[389608448,1759741842669,-151.0,0.0002086,2]
[389608449,1759741842678,-151.0,0.0002086,2]
[389608450,1759741842687,-151.0,0.0002086,2]
[389608451,1759741842695,-151.0,0.0002086,2]
[389608452,1759741842704,-151.0,0.0002086,2]
[389608453,1759741842714,-151.0,0.0002086,2]
[389608454,1759741842723,-565.38,0.0002087,3]
[389608455,1759741842732,-500.0,0.00020873,2]
[389608456,1759741842741,-500.0,0.00020873,2]
[389608457,1759741842750,-500.0,0.00020873,2]
[389608458,1759741842759,-500.00985826,0.00020873,2]
[389608459,1759741842767,-500.0,0.00020873,2]
[389608460,1759741842776,-500.6200462,0.00020873,2]
[389608461,1759741842785,-500.0,0.00020873,2]
[389608462,1759741842795,-500.0,0.00020873,2]
[389608463,1759741842805,-151.0,0.00020873,2]
[389608464,1759741842814,-151.0,0.00020873,2]
[389608465,1759741842823,-151.0,0.00020873,2]
[389608466,1759741842832,-151.0,0.00020873,2]
[389608467,1759741842846,-172.963564,0.00020873,2]
[389608468,1759741842855,-172.963564,0.00020873,2]
[389608469,1759741842864,-172.963564,0.00020873,2]
[389608470,1759741842873,-172.963564,0.00020873,2]
[389608471,1759741842883,-151.0,0.00020873,2]
[389608472,1759741842892,-151.0,0.00020873,2]
[389608473,1759741842902,-185.161988,0.00020873,2]
[389608474,1759741842913,-151.0,0.00020873,2]
[389608475,1759741842922,-151.0,0.00020873,2]
[389608476,1759741842932,-151.0,0.00020873,2]
[389608477,1759741842941,-151.0,0.00020873,2]
[389608478,1759741842950,-213.658544,0.00020873,2]
[389608479,1759741842959,-213.658544,0.00020873,2]
[389608480,1759741842968,-213.658544,0.00020873,2]
[389608481,1759741842978,-213.658544,0.00020873,2]
[389608482,1759741842987,-151.0,0.00020873,2]
[389608483,1759741842997,-151.0,0.00020873,2]
[389608484,1759741843007,-273.964098,0.00020873,2]
[389608485,1759741843016,-198.433024,0.00020873,2]
[389608486,1759741843026,-1000.0,0.000209,2]
[389608487,1759741843035,-360.0,0.00020928,2]
[389608488,1759741843044,-1428.16777634,0.00020953,2]
[389608489,1759741843055,-152.222469,0.0002096,2]
[389608490,1759741843064,-1500.0,0.00020968,2]
[389608491,1759741843074,-1500.0,0.00020968,2]
[389608492,1759741843083,-1500.0,0.00020968,2]
[389608493,1759741843092,-1500.0,0.00020968,2]
[389608494,1759741843102,-1500.0,0.00020968,2]
[389608495,1759741843111,-1632.56765264,0.00020968,2]
[389608496,1759741843121,-1500.0,0.00020968,2]
[389608497,1759741843130,-587.0,0.00020989,2]
[389608499,1759741843139,-3000.0,0.00021,2]
[389608500,1759741843149,-1000.0,0.00021007,2]
[389608502,1759741843158,-3000.0,0.0002101,2]
[389608503,1759741843168,-3000.0,0.0002102,2]
[389608504,1759741843177,-3000.0,0.0002103,2]
[389608505,1759741843186,-3000.0,0.0002104,2]
[389608506,1759741843196,-564.0,0.00021046,2]
[389608507,1759741843205,-3000.0,0.0002105,2]
[389608508,1759741843215,-3000.0,0.0002106,2]
[389608509,1759741843223,-3000.0,0.0002107,2]
[389608510,1759741843234,-151.0,0.0002107,2]
[389608511,1759741843244,-588.15782103,0.00021071,2]
[389608512,1759741843253,-3000.0,0.0002108,2]
[389608513,1759741843262,-3000.0,0.0002109,2]
[389608514,1759741843272,-704.77850067,0.00021094,2]
[389608516,1759741843282,-2816.29488868,0.00021094,2]
[389608517,1759741843290,-168.0,0.00021096,3]
[389608518,1759741843301,-2000.0,0.000211,2]
[389608519,1759741843311,-3000.0,0.000211,2]
[389608520,1759741843320,-3000.0,0.0002111,2]
[389608522,1759741843329,-3000.0,0.0002112,2]
[389608523,1759741843338,-187.316008,0.0002112,2]
[389608524,1759741843348,-176.397433,0.0002112,2]
[389608525,1759741843358,-1683.566719,0.0002112,2]
[389608526,1759741843367,-1683.566719,0.0002112,2]
[389608527,1759741843376,-1683.566719,0.0002112,2]
[389608529,1759741843386,-1683.566719,0.0002112,2]
[389608530,1759741843395,-151.0,0.0002112,2]
[389608531,1759741843404,-151.0,0.0002112,2]
[389608532,1759741843413,-151.0,0.0002112,2]
[389608533,1759741843422,-151.0,0.0002112,2]
[389608534,1759741843431,-186.388544,0.0002112,2]
[389608535,1759741843441,-151.0,0.0002112,2]
[389608536,1759741843450,-151.0,0.0002112,2]
[389608537,1759741843459,-151.0,0.0002112,2]
[389608539,1759741843469,-3000.0,0.0002113,2]
[389608540,1759741843478,-3000.0,0.0002114,2]
[389608541,1759741843487,-151.0,0.0002114,2]
[389608543,1759741843496,-151.0,0.0002114,2]
[389608545,1759741843506,-151.0,0.0002114,2]
[389608546,1759741843516,-151.0,0.0002114,2]
[389608547,1759741843525,-151.0,0.0002114,2]
[389608548,1759741843534,-174.345799,0.0002114,2]
[389608549,1759741843543,-151.0,0.0002114,2]
[389608550,1759741843553,-174.345799,0.0002114,2]
[389608551,1759741843562,-151.0,0.0002114,2]
[389608552,1759741843571,-174.345799,0.0002114,2]
[389608553,1759741843581,-151.0,0.0002114,2]
[389608554,1759741843591,-151.0,0.0002114,2]
[389608555,1759741843600,-174.345799,0.0002114,2]
[389608556,1759741843609,-213.016442,0.0002114,2]
[389608557,1759741843618,-151.0,0.0002114,2]
[389608558,1759741843627,-151.0,0.0002114,2]
[389608559,1759741843636,-151.0,0.0002114,2]
[389608560,1759741843645,-151.0,0.0002114,2]
[389608561,1759741843654,-212.71412,0.0002114,2]
[389608562,1759741843664,-151.824812,0.0002114,2]
[389608563,1759741843672,-151.0,0.0002114,2]
[389608564,1759741843681,-151.388318,0.0002114,2]
[389608565,1759741843690,-151.0,0.0002114,2]
[389608566,1759741843699,-151.0,0.0002114,2]
[389608567,1759741843708,-154.796896,0.0002114,2]
[389608569,1759741843717,-151.0,0.0002114,2]
[389608571,1759741843726,-204.40009,0.0002114,2]
[389608572,1759741843736,-395.065181,0.0002114,2]
[389608573,1759741843744,-395.065181,0.0002114,2]
[389608574,1759741843753,-395.065181,0.0002114,2]
[389608575,1759741843763,-395.065181,0.0002114,2]
[389608576,1759741843772,-3000.0,0.0002115,2]
[389608577,1759741843780,-207.350752,0.0002115,2]
[389608578,1759741843789,-207.350752,0.0002115,2]
[389608579,1759741843798,-207.350752,0.0002115,2]
[389608580,1759741843808,-207.350752,0.0002115,2]
[389608581,1759741843817,-151.0,0.0002115,2]
[389608582,1759741843826,-151.0,0.0002115,2]
[389608583,1759741843836,-151.0,0.0002115,2]
[389608584,1759741843848,-151.0,0.0002115,2]
[389608585,1759741843857,-151.0,0.0002115,2]
[389608586,1759741843867,-151.0,0.0002115,2]
[389608587,1759741843876,-151.0,0.0002115,2]
[389608588,1759741843885,-151.0,0.0002115,2]
[389608589,1759741843894,-203.841282,0.0002115,2]
[389608590,1759741843903,-151.0,0.0002115,2]
[389608591,1759741843912,-151.0,0.0002115,2]
[389608592,1759741843923,-151.0,0.0002115,2]
[389608594,1759741843933,-3000.0,0.0002116,2]
[389608596,1759741843943,-3000.0,0.0002117,2]
[389608597,1759741843952,-3000.0,0.0002118,2]
[389608598,1759741843962,-151.0,0.0002118,2]
[389608599,1759741843972,-151.0,0.0002118,2]
[389608600,1759741843981,-151.0,0.0002118,2]
[389608601,1759741843991,-151.0,0.0002118,2]
[389608602,1759741844001,-151.0,0.0002118,2]
[389608603,1759741844010,-151.634143,0.0002118,2]
[389608604,1759741844019,-151.0,0.0002118,2]
[389608605,1759741844028,-151.0,0.0002118,2]
[389608606,1759741844038,-151.0,0.0002118,2]
[389608607,1759741844047,-172.963564,0.0002118,2]
[389608608,1759741844056,-172.963564,0.0002118,2]
[389608609,1759741844065,-172.963564,0.0002118,2]
[389608610,1759741844074,-172.963564,0.0002118,2]
[389608611,1759741844083,-151.0,0.0002118,2]
[389608612,1759741844092,-151.0,0.0002118,2]
[389608613,1759741844101,-151.0,0.0002118,2]
[389608614,1759741844110,-151.0,0.0002118,2]
[389608615,1759741844119,-151.0,0.0002118,2]
[389608616,1759741844128,-151.0,0.0002118,2]
[389608617,1759741844137,-213.658544,0.0002118,2]
[389608618,1759741844146,-213.658544,0.0002118,2]
[389608619,1759741844156,-213.658544,0.0002118,2]
[389608620,1759741844165,-213.658544,0.0002118,2]
[389608621,1759741844174,-151.0,0.0002118,2]
[389608622,1759741844184,-151.0,0.0002118,2]
[389608623,1759741844193,-1428.16777636,0.0002118,2]
[389608624,1759741844205,-3000.0,0.0002119,2]
[389608625,1759741844215,-3000.0,0.000212,2]
[389608626,1759741844224,-3000.0,0.0002121,2]
[389608627,1759741844233,-307.934,0.0002121,2]
[389608628,1759741844242,-3000.0,0.0002122,2]
[389608629,1759741844251,-3000.0,0.0002123,2]
[389608630,1759741844261,-3000.0,0.0002124,2]
[389608631,1759741844270,-3000.0,0.0002125,2]
[389608632,1759741844280,-3000.0,0.0002126,2]
[389608633,1759741844293,-179.23669693,0.0002126,2]
[389608634,1759741844305,-3000.0,0.0002127,2]
[389608635,1759741844318,-1683.566719,0.00021274,2]
[389608636,1759741844327,-1683.566719,0.00021274,2]
[389608637,1759741844336,-1683.566719,0.00021274,2]
[389608638,1759741844345,-1683.566717,0.00021274,2]
[389608639,1759741844354,-151.0,0.00021274,2]
[389608640,1759741844364,-242.645926,0.00021274,2]
[389608641,1759741844373,-151.0,0.00021274,2]
[389608642,1759741844383,-180.093326,0.00021274,2]
[389608643,1759741844392,-151.0,0.00021274,2]
[389608644,1759741844401,-151.0,0.00021274,2]
[389608645,1759741844410,-250.0,0.00021274,2]
[389608646,1759741844419,-250.0,0.00021274,2]
[389608647,1759741844428,-155.786338,0.00021274,2]
[389608648,1759741844438,-250.0,0.00021274,2]
[389608649,1759741844446,-509.88699319,0.00021274,2]
[389608650,1759741844456,-260.07757208,0.00021274,2]
[389608651,1759741844465,-325.92399859,0.00021274,2]
[389608652,1759741844475,-18603.8837,0.00021274,2]
[389608653,1759741844486,-3000.0,0.0002128,2]
[389608654,1759741844495,-161.756189,0.0002128,2]
[389608655,1759741844505,-151.0,0.0002128,2]
[389608656,1759741844514,-151.0,0.0002128,2]
[389608657,1759741844523,-151.0,0.0002128,2]
[389608658,1759741844533,-395.065181,0.0002128,2]
[389608659,1759741844543,-395.065181,0.0002128,2]
[389608660,1759741844552,-395.065181,0.0002128,2]
[389608661,1759741844561,-395.065185,0.0002128,2]
[389608662,1759741844571,-3000.0,0.0002129,2]
[389608663,1759741844580,-3000.0,0.000213,2]
[389608664,1759741844589,-151.0,0.000213,2]
[389608665,1759741844599,-174.345799,0.000213,2]
[389608666,1759741844608,-151.0,0.000213,2]
[389608667,1759741844617,-174.345799,0.000213,2]
[389608668,1759741844626,-151.0,0.000213,2]
[389608669,1759741844638,-174.345799,0.000213,2]
[389608670,1759741844647,-151.0,0.000213,2]
[389608671,1759741844657,-221.369747,0.000213,2]
[389608672,1759741844667,-174.345799,0.000213,2]
[389608673,1759741844676,-151.0,0.000213,2]
[389608674,1759741844686,-151.0,0.000213,2]
[389608675,1759741844695,-151.0,0.000213,2]
[389608676,1759741844858,-151.0,0.000213,2]
[389608677,1759741844868,-3000.0,0.0002131,2]
[389608678,1759741844879,-151.868962,0.0002131,2]
[389608679,1759741844888,-151.0,0.0002131,2]
[389608680,1759741844898,-162.237056,0.0002131,2]
[389608681,1759741844909,-207.350752,0.0002131,2]
[389608682,1759741844919,-207.350752,0.0002131,2]
[389608683,1759741844929,-207.350752,0.0002131,2]
[389608684,1759741844939,-207.350753,0.0002131,2]
[389608685,1759741844948,-159.909664,0.0002131,2]
[389608686,1759741844958,-167.838168,0.0002131,2]
[389608687,1759741844967,-151.0,0.0002131,2]
[389608688,1759741844976,-151.0,0.0002131,2]
[389608689,1759741844986,-151.0,0.0002131,2]
[389608690,1759741844995,-151.0,0.0002131,2]
[389608691,1759741845005,-151.0,0.0002131,2]
[389608692,1759741845014,-151.0,0.0002131,2]
[389608693,1759741845023,-151.0,0.0002131,2]
[389608694,1759741845032,-151.0,0.0002131,2]
[389608695,1759741845042,-151.0,0.0002131,2]
[389608696,1759741845051,-3000.0,0.0002132,2]
[389608697,1759741845060,-3000.0,0.0002133,2]
[389608698,1759741845069,-152.242383,0.00021331,2]
[389608699,1759741845078,-151.0,0.00021331,2]
[389608700,1759741845087,-151.0,0.00021331,2]
[389608701,1759741845096,-172.963564,0.00021331,2]
[389608702,1759741845106,-172.963564,0.00021331,2]
[389608703,1759741845116,-172.963564,0.00021331,2]
[389608704,1759741845126,-172.963565,0.00021331,2]
[389608705,1759741845136,-151.0,0.00021331,2]
[389608706,1759741845145,-151.0,0.00021331,2]
[389608707,1759741845154,-151.0,0.00021331,2]
[389608708,1759741845164,-151.0,0.00021331,2]
[389608709,1759741845173,-151.0,0.00021331,2]
[389608710,1759741845182,-183.70902328,0.00021331,2]
[389608711,1759741845191,-213.658544,0.00021331,2]
[389608712,1759741845200,-213.658544,0.00021331,2]
[389608713,1759741845210,-213.658544,0.00021331,2]
[389608714,1759741845219,-213.658536,0.00021331,2]
[389608715,1759741845229,-151.0,0.00021331,2]
[389608716,1759741845238,-151.0,0.00021331,2]
[389608717,1759741845247,-501.64001291,0.00021331,2]
[389608718,1759741845257,-3000.0,0.0002134,2]
[389608719,1759741845266,-3000.0,0.0002135,2]
[389608720,1759741845275,-3000.0,0.0002136,2]
[389608721,1759741845284,-3000.0,0.0002137,2]
[389608722,1759741845294,-3000.0,0.0002138,2]
[389608723,1759741845303,-151.0,0.0002138,2]
[389608724,1759741845312,-183.944655,0.0002138,2]
[389608725,1759741845321,-151.0,0.0002138,2]
[389608726,1759741845331,-151.0,0.0002138,2]
[389608727,1759741845340,-151.0,0.0002138,2]
[389608728,1759741845350,-3000.0,0.0002139,2]
[389608729,1759741845359,-3000.0,0.000214,2]
[389608730,1759741845369,-1000.0,0.000214,2]
[389608731,1759741845378,-3000.0,0.0002141,2]
[389608732,1759741845388,-3000.0,0.0002142,2]
[389608733,1759741845398,-1014.31782585,0.00021421,2]
[389608734,1759741845407,-1000.0,0.00021421,2]
[389608735,1759741845417,-1000.0,0.00021421,2]
[389608736,1759741845426,-1000.0,0.00021421,2]
[389608737,1759741845435,-3000.0,0.0002143,2]
[389608738,1759741845445,-4823.224143,0.0002144,2]
[389608739,1759741845454,-588.0,0.00021446,2]
[389608740,1759741845464,-227.1211276,0.00021475,2]
[389608741,1759741845473,-460.0,0.00021476,2]
[389608742,1759741845482,-2000.0,0.00021516,2]
[389608743,1759741845492,-2000.0,0.00021516,2]
[389608744,1759741845501,-568.06685745,0.00021516,2]
[389608745,1759741845696,-885.96677516,0.00021516,2]
[389608746,1759741845815,-453.0,0.00021516,2]
[389608747,1759741845827,-92.96636739,0.00021516,2]
[389608748,1759741845837,-2000.0,0.00021516,2]
[389608749,1759741845851,-298.02782243,0.00021516,2]
[389608750,1759741845862,-1701.97217757,0.00021516,2]
[389608751,1759741845872,-22.61292452,0.00021516,2]
[389608752,1759741845972,-1977.38707548,0.00021516,2]
[389608753,1759741845984,-203.81341681,0.00021555,2]
[389608754,1759741845993,-65.83362033,0.00021595,2]
[389608755,1759741846004,-434.16637967,0.00021595,2]
[389608756,1759741846013,-465.02120418,0.00021595,2]
[389608758,1759741846023,-558.09620544,0.00021595,2]
[389608759,1759741846031,-1120.64600052,0.00021599,2]
[389608760,1759741846041,-431.68464033,0.00021611,2]
[389608774,1759741972474,2555.24,0.00025,30]
[389608775,1759742055265,5000.0,0.0002012,9]
[389608776,1759742164136,169.0,0.00028767,120]
[389608778,1759742572090,7000.0,0.00025,30]
[389608779,1759742612163,7000.0,0.00025,30]
[389608780,1759742663765,170.0,0.00028767,120]
[389608781,1759742704355,178.0,0.00028767,120]
[389608782,1759742758204,6608.0,0.00028767,120]
[389608783,1759742833710,2194.87595732,0.00028767,120]
[389608829,1759743032009,-300.0,0.0001746,2]
[389608830,1759743032018,-880.0,0.0001746,2]
[389608831,1759743032028,-150.0,0.0001746,2]
[389608832,1759743032038,-205.75492649,0.00017461,2]
[389608833,1759743032049,-294.24507351,0.00017461,2]
[389608834,1759743032059,-500.0,0.00017461,2]
[389608835,1759743032068,-347.85492649,0.00017461,2]
[389608836,1759743032104,-152.14507351,0.00017461,2]
[389608837,1759743032113,-500.0,0.00017461,2]
[389608838,1759743032122,-500.0,0.00017461,2]
[389608839,1759743032132,-500.0,0.00017461,2]
[389608840,1759743032141,-500.0,0.00017461,2]
[389608841,1759743032151,-387.0018564,0.00017461,2]
[389608842,1759743032160,-500.0,0.00017461,2]
[389608843,1759743032169,-164.67637258,0.00017461,2]
[389608844,1759743032179,-500.0,0.00017461,2]
[389608845,1759743032188,-479.34973972,0.00017461,2]
[389608846,1759743032197,-500.0,0.00017461,2]
[389608847,1759743032206,-500.0,0.00017461,2]
[389608848,1759743032215,-500.0,0.00017461,2]
[389608849,1759743032224,-500.0,0.00017461,2]
[389608850,1759743032233,-500.0,0.00017461,2]
[389608851,1759743032243,-367.02086582,0.00017461,2]
[389608852,1759743032252,-278.06896298,0.00017461,2]
[389608853,1759743032261,-500.0,0.00017461,2]
[389608854,1759743032270,-500.0,0.00017461,2]
[389608855,1759743032284,-300.0,0.00017462,2]
[389608856,1759743032296,-214.0,0.00017562,2]
[389608857,1759743032309,-6656.2,0.00017563,2]
[389608858,1759743032320,-324.0,0.00017862,2]
[389608859,1759743032333,-151.0,0.00017989,2]
[389608860,1759743032343,-151.0,0.00017989,2]
[389608861,1759743032354,-151.0,0.00017989,2]
[389608862,1759743032366,-151.0,0.00017989,2]
[389608863,1759743032377,-151.0,0.00017989,2]
[389608864,1759743032388,-151.0,0.00017989,2]
[389608865,1759743032401,-151.0,0.00017989,2]
[389608866,1759743032412,-151.0,0.00017989,2]
[389608867,1759743032424,-151.0,0.00017989,2]
[389608868,1759743032436,-151.0,0.00017989,2]
[389608869,1759743032448,-151.0,0.00017989,2]
[389608870,1759743032460,-151.0,0.00017989,2]
[389608871,1759743032471,-151.0,0.00017989,2]
[389608872,1759743032485,-151.0,0.00017989,2]